bitfinex-derivatives/quotes_BNBF0:USTF0_20250609
["timestamp","ask_amount","ask_price","bid_price","bid_amount"]
[1749441430229,0.26725442,651.35,650.53,3.805689]
[1749441430630,0.26725442,651.35,650.54,3.805689]
[1749441431027,0.26725442,651.35,650.49,0.30746052]
[1749441440933,0.26725442,651.35,650.51,3.805689]
[1749441441834,0.26725442,651.35,650.49,0.30746052]
[1749441449037,0.26725442,651.35,650.5,3.805689]
[1749441449537,0.26725442,651.35,650.53,3.805689]
[1749441450337,0.26725442,651.35,650.51,3.805689]
[1749441451536,0.26725442,651.35,650.82,3.805689]
[1749441452138,0.26725442,651.35,650.8,3.805689]
[1749441452442,0.26725442,651.35,650.81,3.805689]
[1749441453042,0.26725442,651.35,650.78,3.805689]
[1749441453442,0.26725442,651.35,650.79,3.805689]
[1749441456941,0.26725442,651.35,650.77,3.805689]
[1749441458044,0.26725442,651.35,650.49,0.30746052]
[1749441467750,0.26725442,651.35,650.52,3.805689]
[1749441469452,0.26725442,651.35,650.49,0.30746052]
[1749441479457,0.26725442,651.35,650.55,3.805689]
[1749441479858,0.26725442,651.35,650.54,3.805689]
[1749441480254,0.26725442,651.35,650.56,3.805689]
[1749441483559,0.26725442,651.35,650.54,3.805689]
[1749441484362,0.26725442,651.35,650.53,3.805689]
[1749441486370,0.26725442,651.35,650.54,3.805689]
[1749441486871,0.26725442,651.35,650.6,3.805689]
[1749441487170,0.26725442,651.35,650.59,3.805689]
[1749441488970,0.26725442,651.35,650.7,3.805689]
[1749441489972,0.26725442,651.35,650.69,3.805689]
[1749441490169,0.26725442,651.35,650.7,3.805689]
[1749441491774,0.26725442,651.35,650.73,3.805689]
[1749441492670,0.26725442,651.35,650.7,3.805689]
[1749441493573,0.26725442,651.35,650.72,3.805689]
[1749441493972,0.26725442,651.35,650.73,3.805689]
[1749441494472,0.26725442,651.35,650.76,3.805689]
[1749441494775,0.26725442,651.35,650.68,3.805689]
[1749441496173,0.26725442,651.35,650.67,3.805689]
[1749441496777,0.26725442,651.35,650.69,3.805689]
[1749441497274,0.26725442,651.35,650.7,3.805689]
[1749441499876,0.26725442,651.35,650.49,0.30746052]
[1749441510686,0.26725442,651.35,650.59,3.805689]
[1749441511586,0.26725442,651.35,650.63,3.805689]
[1749441515192,0.26725442,651.35,650.64,3.805689]
[1749441516489,0.26725442,651.35,650.7,3.805689]
[1749441516990,0.26725442,651.35,650.72,3.805689]
[1749441517489,0.26725442,651.35,650.67,3.805689]
[1749441517991,0.26725442,651.35,650.51,3.805689]
[1749441518193,0.26725442,651.35,650.51,4.11314007]
[1749441518392,0.26725442,651.35,650.55,3.805689]
[1749441518890,0.26725442,651.35,650.53,3.805689]
[1749441521490,0.26725442,651.35,650.52,3.805689]
[1749441522391,0.26725442,651.35,650.53,3.805689]
[1749441527307,0.26725442,651.35,650.55,3.805689]
[1749441527702,0.26725442,651.35,650.7,3.805689]
[1749441528604,0.26725442,651.35,650.73,3.805689]
[1749441533103,0.26725442,651.35,650.76,3.805689]
[1749441536407,0.26725442,651.35,650.82,3.805689]
[1749441536807,0.26725442,651.35,650.85,3.805689]
[1749441538006,0.26725442,651.35,650.79,3.805689]
[1749441541714,0.26725442,651.35,650.81,3.805689]
[1749441544115,0.26725442,651.35,650.82,3.805689]
[1749441544512,0.26725442,651.35,650.51,0.30745107]
[1749441554228,0.26725442,651.35,650.68,3.805689]
[1749441555623,0.26725442,651.35,650.69,3.805689]
[1749441556728,0.26725442,651.35,650.55,3.805689]
[1749441557331,0.26725442,651.35,650.56,3.805689]
[1749441557827,0.26725442,651.35,650.55,3.805689]
[1749441558228,0.26725442,651.35,650.58,3.805689]
[1749441561029,0.26725442,651.35,650.51,0.30745107]
[1749441561030,0.26725442,651.35,650.59,3.805689]
[1749441561430,0.26725442,651.35,650.58,3.805689]
[1749441562032,0.26725442,651.35,650.63,3.805689]
[1749441564233,0.26725442,651.35,650.64,3.805689]
[1749441565536,0.26725442,651.35,650.63,3.805689]
[1749441566033,0.26725442,651.35,650.64,3.805689]
[1749441566440,0.26725442,651.35,650.8,3.805689]
[1749441567333,0.26725442,651.35,650.73,3.805689]
[1749441571934,0.26725442,651.35,650.75,3.805689]
[1749441572438,0.26725442,651.35,650.76,3.805689]
[1749441572738,0.26725442,651.35,650.75,3.805689]
[1749441573237,0.26725442,651.35,650.74,3.805689]
[1749441574134,0.26725442,651.35,650.73,3.805689]
[1749441574535,0.26725442,651.35,650.77,3.805689]
[1749441576239,0.26725442,651.35,650.78,3.805689]
[1749441577235,0.26725442,651.35,650.55,5.31780669]
[1749441577236,0.26725442,651.35,650.85,3.805689]
[1749441577637,0.26725442,651.35,650.86,3.805689]
[1749441579440,0.26725442,651.35,650.51,0.30745107]
[1749441579441,0.26725442,651.35,650.85,3.805689]
[1749441581536,0.26725442,651.35,650.86,3.805689]
[1749441582037,0.26725442,651.35,650.82,3.805689]
[1749441582837,0.26725442,651.35,650.83,3.805689]
[1749441583037,0.26725442,651.35,650.79,3.805689]
[1749441583641,0.26725442,651.35,650.67,3.805689]
[1749441584040,0.26725442,651.35,650.66,3.805689]
[1749441584440,0.26725442,651.35,650.51,0.30745107]
[1749441584441,0.26725442,651.35,650.67,3.805689]
[1749441585740,0.26725442,651.35,650.66,3.805689]
[1749441588545,0.26725442,651.35,650.61,3.805689]
[1749441589344,0.26725442,651.35,650.62,3.805689]
[1749441590246,0.26725442,651.35,650.51,0.30745107]
[1749441590247,0.26725442,651.35,650.61,3.805689]
[1749441591144,0.26725442,651.35,650.62,3.805689]
[1749441591644,0.26725442,651.35,650.6,3.805689]
[1749441592045,0.26725442,651.35,650.61,3.805689]
[1749441593349,0.26725442,651.35,650.71,3.805689]
[1749441593946,0.26725442,651.35,650.76,3.805689]
[1749441595649,0.26725442,651.35,650.77,3.805689]
[1749441596049,0.26725442,651.35,650.76,3.805689]
[1749441597347,0.26725442,651.35,650.77,3.805689]
[1749441598246,0.26725442,651.35,650.88,3.805689]
[1749441599648,0.26725442,651.35,650.87,3.805689]
[1749441600649,0.26725442,651.35,650.82,3.805689]
[1749441601053,0.26725442,651.35,650.74,3.805689]
[1749441601553,0.26725442,651.35,650.73,3.805689]
[1749441601953,0.26725442,651.35,650.77,3.805689]
[1749441602454,0.26725442,651.35,650.74,3.805689]
[1749441603755,0.26725442,651.35,650.75,3.805689]
[1749441603950,0.30689909,651.68,650.75,3.805689]
[1749441604154,0.26721338,651.27,650.75,3.805689]
[1749441604350,0.30689909,651.68,650.75,3.805689]
[1749441604556,0.30689909,651.68,650.83,3.805689]
[1749441604751,0.26722159,651.23,650.83,3.805689]
[1749441604953,0.30689909,651.68,650.83,3.805689]
[1749441605155,0.26721338,651.23,650.7,3.805689]
[1749441605557,0.30689909,651.68,650.7,3.805689]
[1749441605756,0.26722672,651.23,650.7,3.805689]
[1749441606055,0.30689909,651.68,650.7,3.805689]
[1749441606256,0.26722672,651.23,650.7,3.805689]
[1749441606659,0.30689909,651.68,650.7,3.805689]
[1749441606853,0.26722672,651.23,650.7,3.805689]
[1749441607058,0.30689909,651.68,650.7,3.805689]
[1749441607758,0.30689909,651.68,650.64,3.805689]
[1749441607960,0.26721646,651.44,650.64,3.805689]
[1749441608658,0.26721646,651.44,650.51,0.30745107]
[1749441633582,0.26721646,651.44,650.58,3.805689]
[1749441633979,0.26721646,651.44,650.66,3.805689]
[1749441634482,0.26721646,651.44,650.63,3.805689]
[1749441635479,0.26721646,651.44,650.65,3.805689]
[1749441635780,0.26721646,651.44,650.56,3.805689]
[1749441636184,0.26721646,651.44,650.54,3.805689]
[1749441637986,0.26721646,651.44,650.53,3.805689]
[1749441638387,0.26721646,651.44,650.52,3.805689]
[1749441638888,0.26721646,651.44,650.51,4.11314007]
[1749441639384,0.26721646,651.44,650.53,3.805689]
[1749441640288,0.26721646,651.44,650.52,3.805689]
[1749441640689,0.26721646,651.44,650.51,4.11314007]
[1749441641387,0.26721646,651.44,650.51,0.30745107]
[1749441655095,0.26721646,651.44,650.52,3.805689]
[1749441655497,0.26721646,651.44,650.51,0.30745107]
[1749441656497,0.26721646,651.44,650.51,4.11314007]
[1749441658303,0.26721646,651.44,650.51,0.30745107]
[1749441658796,0.26721646,651.44,650.53,3.805689]
[1749441659602,0.26721646,651.44,650.54,3.805689]
[1749441661101,0.26721646,651.44,650.51,0.30745107]
[1749441679420,0.26721646,651.44,650.2,3.805689]
[1749441679617,0.26721646,651.44,650.52,0.89]
[1749441683822,0.30701687,651.43,650.52,0.89]
[1749441692326,1.39387639,651.43,650.52,0.89]
[1749441693326,0.30701687,651.43,650.52,0.89]
[1749441704137,1.39387639,651.43,650.52,0.89]
[1749441704333,1.08685952,651.42,650.52,0.89]
[1749441704538,1.08685952,651.41,650.52,0.89]
[1749441706233,0.30702158,651.42,650.52,0.89]
[1749441706433,1.3938811,651.42,650.52,0.89]
[1749441706641,0.30702158,651.42,650.52,0.89]
[1749441706933,1.3938811,651.42,650.52,0.89]
[1749441707140,0.30702158,651.42,650.52,0.89]
[1749441707435,1.3938811,651.42,650.52,0.89]
[1749441707633,0.30702158,651.42,650.52,0.89]
[1749441707838,1.3938811,651.42,650.52,0.89]
[1749441708134,0.30702158,651.42,650.52,0.89]
[1749441708335,1.3938811,651.42,650.52,0.89]
[1749441708533,0.30702158,651.42,650.18,0.2673386]
[1749441708737,1.3938811,651.42,650.18,0.2673386]
[1749441708939,0.30702158,651.42,650.18,0.2673386]
[1749441709441,1.3938811,651.42,650.18,0.2673386]
[1749441709637,0.30702158,651.42,650.18,0.2673386]
[1749441709841,1.3938811,651.42,650.18,0.2673386]
[1749441710036,0.30702158,651.42,650.18,0.2673386]
[1749441710340,1.3938811,651.42,650.18,0.2673386]
[1749441710541,0.30702158,651.42,650.18,0.2673386]
[1749441712043,0.30702158,651.42,650.19,0.958]
[1749441714546,0.30702158,651.42,650.2,4.11328666]
[1749441714845,0.30702158,651.42,650.21,0.30759293]
[1749441715449,0.30702158,651.42,650.21,4.11328193]
[1749441716844,0.30702158,651.42,650.25,3.805689]
[1749441717846,0.30702158,651.42,650.21,0.30759293]
[1749441727560,0.30702158,651.42,650.22,3.805689]
[1749441727854,0.30702158,651.42,650.23,0.896]
[1749441728658,0.30702158,651.42,650.46,3.805689]
[1749441729458,0.30702158,651.42,650.47,3.805689]
[1749441730863,0.30702158,651.42,650.48,3.805689]
[1749441731661,0.30702158,651.42,650.47,3.805689]
[1749441732159,0.30702158,651.42,650.46,3.805689]
[1749441732557,0.30702158,651.42,650.47,3.805689]
[1749441733061,0.30702158,651.42,650.46,3.805689]
[1749441733658,0.30702158,651.42,650.42,3.805689]
[1749441734159,0.30702158,651.42,650.41,3.805689]
[1749441734562,0.30702158,651.42,650.42,3.805689]
[1749441735862,0.30702158,651.42,650.38,3.805689]
[1749441736661,0.30702158,651.42,650.23,0.896]
[1749441748870,0.30702158,651.42,650.24,3.805689]
[1749441749374,0.30702158,651.42,650.27,3.805689]
[1749441751878,0.30702158,651.42,650.31,3.805689]
[1749441752075,0.30702158,651.42,650.3,3.805689]
[1749441753675,0.30702158,651.42,650.34,3.805689]
[1749441755281,0.30702158,651.42,650.43,3.805689]
[1749441756183,0.30702158,651.42,650.42,3.805689]
[1749441756576,0.30702158,651.42,650.43,3.805689]
[1749441757078,0.30702158,651.42,650.44,0.912]
[1749441758383,0.30702158,651.42,650.48,3.805689]
[1749441760283,0.30702158,651.42,650.47,3.805689]
[1749441760885,0.30702158,651.42,650.44,0.912]
[1749441761587,1.09229972,651.41,650.44,0.912]
[1749441761782,1.09229972,651.4,650.44,0.912]
[1749441762085,1.09229972,651.39,650.44,0.912]
[1749441762385,1.09229972,651.41,650.44,0.912]
[1749441762586,1.09229972,651.4,650.44,0.912]
[1749441762786,1.09229972,651.39,650.44,0.912]
[1749441762985,1.09229972,651.41,650.44,0.912]
[1749441763182,1.09229972,651.4,650.44,0.912]
[1749441763387,1.09229972,651.39,650.44,0.912]
[1749441763686,1.09229972,651.41,650.44,0.912]
[1749441763885,1.09229972,651.4,650.44,0.912]
[1749441764086,1.09229972,651.39,650.44,0.912]
[1749441764284,1.09229972,651.38,650.44,0.912]
[1749441764488,1.09229972,651.37,650.44,0.912]
[1749441764788,1.09229972,651.41,650.44,0.912]
[1749441764987,1.09229972,651.4,650.44,0.912]
[1749441765185,1.09229972,651.39,650.44,0.912]
[1749441765385,0.30702158,651.42,650.44,0.912]
[1749441765386,1.09229972,651.38,650.44,0.912]
[1749441765587,1.09229972,651.37,650.44,0.912]
[1749441765785,1.09229972,651.41,650.44,0.912]
[1749441765985,1.09229972,651.4,650.44,0.912]
[1749441766185,1.09229972,651.39,650.44,0.912]
[1749441766488,1.09229972,651.38,650.44,0.912]
[1749441766686,1.09229972,651.37,650.44,0.912]
[1749441766888,1.09229972,651.36,650.44,0.912]
[1749441767086,1.09229972,651.41,650.44,0.912]
[1749441767285,1.09229972,651.4,650.44,0.912]
[1749441767589,1.09229972,651.39,650.44,0.912]
[1749441767890,1.09229972,651.38,650.44,0.912]
[1749441768087,1.09229972,651.37,650.44,0.912]
[1749441768291,1.09229972,651.36,650.44,0.912]
[1749441768485,1.09229972,651.35,650.44,0.912]
[1749441768686,1.09229972,651.41,650.44,0.912]
[1749441768888,0.30702158,651.42,650.44,0.912]
[1749441768889,1.09229972,651.4,650.44,0.912]
[1749441769086,1.09229972,651.39,650.44,0.912]
[1749441769289,1.09229972,651.38,650.44,0.912]
[1749441769493,1.09229972,651.37,650.44,0.912]
[1749441769691,1.09229972,651.36,650.44,0.912]
[1749441769987,1.09229972,651.35,650.44,0.912]
[1749441770191,1.09229972,651.41,650.44,0.912]
[1749441770488,1.09229972,651.4,650.44,0.912]
[1749441770789,1.09229972,651.39,650.44,0.912]
[1749441770989,1.09229972,651.38,650.44,0.912]
[1749441771188,1.09229972,651.37,650.44,0.912]
[1749441771388,1.09229972,651.36,650.44,0.912]
[1749441771591,1.09229972,651.35,650.44,0.912]
[1749441771790,1.09229972,651.34,650.44,0.912]
[1749441771989,1.09229972,651.41,650.44,0.912]
[1749441772194,1.09229972,651.4,650.44,0.912]
[1749441772489,0.30702158,651.42,650.44,0.912]
[1749441772490,1.09229972,651.39,650.44,0.912]
[1749441772692,1.09229972,651.38,650.44,0.912]
[1749441772992,1.09229972,651.37,650.44,0.912]
[1749441773192,1.09229972,651.36,650.44,0.912]
[1749441773394,1.09229972,651.35,650.44,0.912]
[1749441773694,1.09229972,651.34,650.44,0.912]
[1749441773893,1.09229972,651.41,650.44,0.912]
[1749441774090,1.09229972,651.4,650.44,0.912]
[1749441774293,1.09229972,651.39,650.44,0.912]
[1749441774495,1.09229972,651.38,650.44,0.912]
[1749441774696,1.09229972,651.37,650.44,0.912]
[1749441774901,1.09229972,651.36,650.44,0.912]
[1749441775100,1.09229972,651.35,650.44,0.912]
[1749441775299,1.09229972,651.34,650.44,0.912]
[1749441775499,1.09229972,651.41,650.44,0.912]
[1749441775800,1.09229972,651.4,650.44,0.912]
[1749441776099,0.30702158,651.42,650.44,0.912]
[1749441776100,1.09229972,651.39,650.44,0.912]
[1749441776299,1.09229972,651.38,650.44,0.912]
[1749441776501,1.09229972,651.37,650.44,0.912]
[1749441776701,1.09229972,651.36,650.44,0.912]
[1749441776897,1.09229972,651.35,650.44,0.912]
[1749441777097,1.09229972,651.34,650.26,3.805689]
[1749441777298,1.09229972,651.41,650.26,3.805689]
[1749441777596,1.09229972,651.4,650.23,3.805689]
[1749441777800,1.09229972,651.39,650.23,3.805689]
[1749441777999,1.09229972,651.38,650.23,3.805689]
[1749441778200,1.09229972,651.37,650.23,3.805689]
[1749441778400,1.09229972,651.36,650.23,3.805689]
[1749441778603,1.09229972,651.35,650.23,3.805689]
[1749441778799,1.09229972,651.34,650.23,3.805689]
[1749441779101,1.09229972,651.41,650.23,3.805689]
[1749441779301,1.09229972,651.4,650.23,3.805689]
[1749441779498,1.09229972,651.39,650.23,3.805689]
[1749441779701,1.09229972,651.38,650.23,3.805689]
[1749441779901,1.09229972,651.37,650.23,3.805689]
[1749441780098,1.09229972,651.36,650.23,3.805689]
[1749441780298,1.09229972,651.35,650.23,3.805689]
[1749441780502,1.09229972,651.34,650.22,0.3075882]
[1749441780799,1.09229972,651.41,650.22,0.3075882]
[1749441780997,1.09229972,651.4,650.22,4.1132772]
[1749441781200,1.09229972,651.39,650.23,0.885]
[1749441781400,1.09229972,651.38,650.23,4.690689]
[1749441781703,1.09229972,651.37,650.23,4.690689]
[1749441781898,1.09229972,651.36,650.24,3.805689]
[1749441782099,1.09229972,651.41,650.24,3.805689]
[1749441782398,1.09229972,651.4,650.24,3.805689]
[1749441782602,1.09229972,651.39,650.24,3.805689]
[1749441782902,1.09229972,651.38,650.24,3.805689]
[1749441783104,1.09229972,651.37,650.24,3.805689]
[1749441783406,1.09229972,651.36,650.26,3.805689]
[1749441783597,1.09229972,651.41,650.27,3.805689]
[1749441783805,1.09229972,651.4,650.27,3.805689]
[1749441784003,1.09229972,651.39,650.27,3.805689]
[1749441784202,1.09229972,651.38,650.27,3.805689]
[1749441784401,1.09229972,651.37,650.27,3.805689]
[1749441784598,1.09229972,651.36,650.27,3.805689]
[1749441784799,1.09229972,651.41,650.27,3.805689]
[1749441785001,1.09229972,651.4,650.33,3.805689]
[1749441785200,1.09229972,651.39,650.33,3.805689]
[1749441785504,1.09229972,651.38,650.33,3.805689]
[1749441785706,1.09229972,651.37,650.33,3.805689]
[1749441785903,1.09229972,651.41,650.34,3.805689]
[1749441786102,1.09229972,651.4,650.34,3.805689]
[1749441786407,1.09229972,651.39,650.32,3.805689]
[1749441786604,1.09229972,651.38,650.32,3.805689]
[1749441786804,1.09229972,651.37,650.28,3.805689]
[1749441787007,1.09229972,651.41,650.28,3.805689]
[1749441787203,1.09229972,651.4,650.32,3.805689]
[1749441787408,1.09229972,651.39,650.32,3.805689]
[1749441787704,1.09229972,651.38,650.32,3.805689]
[1749441787904,1.09229972,651.37,650.32,3.805689]
[1749441788204,1.09229972,651.41,650.32,3.805689]
[1749441788403,1.09229972,651.4,650.32,3.805689]
[1749441788605,1.09229972,651.39,650.31,3.805689]
[1749441788803,1.09229972,651.38,650.31,3.805689]
[1749441789004,1.09229972,651.37,650.29,3.805689]
[1749441789207,1.09229972,651.36,650.29,3.805689]
[1749441789503,1.09229972,651.41,650.29,3.805689]
[1749441789703,1.09229972,651.4,650.29,3.805689]
[1749441789904,1.09229972,651.39,650.27,3.805689]
[1749441790208,1.09229972,651.38,650.27,3.805689]
[1749441790508,1.09229972,651.37,650.29,3.805689]
[1749441790708,1.09229972,651.41,650.29,3.805689]
[1749441791008,1.09229972,651.4,650.29,3.805689]
[1749441791208,1.09229972,651.39,650.29,3.805689]
[1749441791504,1.09229972,651.38,650.29,3.805689]
[1749441791704,1.09229972,651.41,650.3,3.805689]
[1749441791906,1.09229972,651.4,650.3,3.805689]
[1749441792104,1.09229972,651.39,650.3,3.805689]
[1749441792305,1.09229972,651.38,650.3,3.805689]
[1749441792607,1.09229972,651.41,650.31,3.805689]
[1749441792808,1.09229972,651.4,650.31,3.805689]
[1749441793009,1.09229972,651.39,650.31,3.805689]
[1749441793204,1.09229972,651.38,650.31,3.805689]
[1749441793407,1.09229972,651.41,650.31,3.805689]
[1749441793604,1.09229972,651.4,650.31,3.805689]
[1749441793808,1.09229972,651.39,650.31,3.805689]
[1749441794008,1.09229972,651.38,650.31,3.805689]
[1749441794207,1.09229972,651.41,650.31,3.805689]
[1749441794409,1.39933073,651.4,650.31,3.805689]
[1749441794608,1.39933544,651.39,650.31,3.805689]
[1749441794813,1.39934015,651.38,650.31,3.805689]
[1749441795112,1.39934487,651.37,650.32,3.805689]
[1749441795312,0.30704515,651.37,650.32,3.805689]
[1749441795908,1.09229972,651.36,650.32,3.805689]
[1749441796108,1.39934958,651.36,650.32,3.805689]
[1749441796308,0.30704986,651.36,650.22,0.3075882]
[1749441796810,1.0967543,651.35,650.23,3.805689]
[1749441797014,1.0967543,651.34,650.23,3.805689]
[1749441797313,1.0967543,651.35,650.22,0.3075882]
[1749441797614,1.0967543,651.34,650.22,0.3075882]
[1749441797909,1.0967543,651.35,650.22,0.3075882]
[1749441798113,1.0967543,651.34,650.22,0.3075882]
[1749441798413,1.0967543,651.35,650.22,0.3075882]
[1749441798713,1.0967543,651.34,650.23,1.292]
[1749441798912,1.0967543,651.35,650.23,1.292]
[1749441799109,1.0967543,651.34,650.23,1.292]
[1749441799410,1.0967543,651.35,650.23,1.292]
[1749441799617,1.0967543,651.34,650.23,1.292]
[1749441799810,1.0967543,651.33,650.23,1.292]
[1749441800015,1.0967543,651.35,650.23,1.292]
[1749441800212,1.0967543,651.34,650.23,1.292]
[1749441800511,1.0967543,651.33,650.23,1.292]
[1749441800716,1.0967543,651.35,650.23,1.292]
[1749441800912,1.0967543,651.34,650.23,1.292]
[1749441801118,1.0967543,651.33,650.23,1.292]
[1749441801317,1.0967543,651.35,650.23,1.292]
[1749441801513,1.0967543,651.34,650.23,1.292]
[1749441801715,0.30704986,651.36,650.23,1.292]
[1749441806917,1.0967543,651.35,650.23,1.292]
[1749441807114,0.30704986,651.36,650.23,1.292]
[1749441807115,0.30704986,651.36,650.3,3.805689]
[1749441807317,1.0967543,651.35,650.3,3.805689]
[1749441807518,1.0967543,651.34,650.3,3.805689]
[1749441807719,1.4038183,651.33,650.26,3.805689]
[1749441807917,1.40382302,651.32,650.26,3.805689]
[1749441808123,1.40382302,651.32,650.23,1.292]
[1749441808124,0.26740228,651.07,650.25,3.805689]
[1749441811718,0.26740228,651.07,650.23,5.097689]
[1749441813625,0.26740228,651.07,650.23,1.292]
[1749441815426,0.26740228,651.07,650.32,3.805689]
[1749441815825,0.26740228,651.07,650.31,3.805689]
[1749441816725,0.26740228,651.07,650.32,3.805689]
[1749441817124,0.26740228,651.07,650.34,3.805689]
[1749441817623,0.26740228,651.07,650.23,1.292]
[1749441823929,0.26740228,651.07,650.22,0.3075882]
[1749441826531,0.26740228,651.07,650.23,0.906]
[1749441831935,0.26740228,651.07,650.31,3.805689]
[1749441832638,0.26740228,651.07,650.32,3.805689]
[1749441834034,0.26740228,651.07,650.23,0.906]
[1749441841741,0.26740228,651.07,650.23,4.711689]
[1749441842243,0.26740228,651.07,650.23,0.906]
[1749441843145,0.26740228,651.07,650.23,4.711689]
[1749441844048,0.26740228,651.07,650.38,3.805689]
[1749441844446,0.26740228,651.07,650.39,3.805689]
[1749441846649,0.26740228,651.07,650.37,3.805689]
[1749441848554,0.26740228,651.07,650.38,3.805689]
[1749441848957,0.26740228,651.07,650.39,3.805689]
[1749441851658,0.26740228,651.07,650.23,0.906]
[1749441854565,0.26740228,651.07,650.22,0.3075882]
[1749441857565,0.26740228,651.07,650.23,1.006]
[1749441877580,0.26740228,651.07,650.23,4.811689]
[1749441878083,0.26740228,651.07,650.23,1.006]
[1749441879483,0.26740228,651.07,650.29,3.805689]
[1749441882589,0.26740228,651.07,650.22,0.3075882]
[1749441885486,0.26740228,651.07,650.23,0.98]
[1749441892290,0.26740228,651.07,650.3,3.805689]
[1749441893093,0.26740228,651.07,650.28,3.805689]
[1749441895298,0.26740228,651.07,650.23,0.98]
[1749441899701,0.26740228,651.07,650.22,0.3075882]
[1749441900803,0.26740228,651.07,649.92,5.31780669]
[1749441901103,0.26740228,651.07,649.89,0.2674403]
[1749441902106,0.26740228,651.07,649.9,0.998]
[1749441910513,0.26740228,651.07,649.97,3.805689]
[1749441911013,0.26740228,651.07,649.9,0.998]
[1749441911014,0.26740228,651.07,650.02,3.805689]
[1749441911411,0.57458891,651.07,649.9,0.998]
[1749441922924,0.57458891,651.07,649.9,4.803689]
[1749441923123,0.57458891,651.07,649.9,3.805689]
[1749441924518,0.57458891,651.07,649.89,3.805689]
[1749441925024,0.57458891,651.07,649.92,3.805689]
[1749441925720,0.57458891,651.07,649.93,0.737]
[1749441927321,0.57458891,651.07,649.97,3.805689]
[1749441927720,0.57458891,651.07,649.96,3.805689]
[1749441929325,0.57458891,651.07,649.93,0.737]
[1749441938727,0.30719134,651.06,649.93,0.737]
[1749441944133,1.40689546,651.06,649.93,0.737]
[1749441944334,0.30719134,651.06,649.93,0.737]
[1749441949745,0.30719134,651.06,649.72,0.26752459]
[1749441953846,0.30719134,651.06,649.73,1.069]
[1749441954545,0.30719134,651.06,649.75,3.80111519]
[1749441955045,0.30719134,651.06,649.77,3.80111519]
[1749441955744,0.30719134,651.06,649.84,3.80111519]
[1749441957145,0.30719134,651.06,649.93,3.80111519]
[1749441958146,0.30719134,651.06,649.94,3.80111519]
[1749441959146,0.30719134,651.06,649.88,3.80111519]
[1749441960349,0.30719134,651.06,649.87,3.80111519]
[1749441962349,0.30719134,651.06,649.88,3.80111519]
[1749441963649,0.30719134,651.06,649.87,3.80111519]
[1749441964551,0.30719134,651.06,649.88,3.80111519]
[1749441964848,1.4094058,651.06,649.88,3.80111519]
[1749441965047,0.30719134,651.06,649.88,3.80111519]
[1749441966752,0.30719134,651.06,649.8,3.80111519]
[1749441967052,1.4094058,651.06,649.8,3.80111519]
[1749441967750,1.4094058,651.06,649.81,3.80111519]
[1749441967950,1.41085919,651.06,649.81,3.80111519]
[1749441968348,1.10366785,651.05,649.81,3.80111519]
[1749441968653,1.41086863,651.04,649.82,3.80111519]
[1749441968853,0.3072055,651.03,649.82,3.80111519]
[1749441969149,0.3072055,651.03,649.84,3.80111519]
[1749441969450,1.10366785,651.02,649.85,3.80111519]
[1749441969653,0.30721494,651.01,649.85,3.80111519]
[1749441969852,0.30721494,651.01,649.86,3.80111519]
[1749441970351,1.10366785,651.0,649.88,3.80111519]
[1749441970549,0.30722438,650.99,649.88,3.80111519]
[1749441970748,1.10366785,650.98,649.88,3.80111519]
[1749441970949,1.41090167,650.97,649.73,1.069]
[1749441971149,1.41090639,650.96,649.73,1.069]
[1749441971353,1.4109111,650.95,649.73,1.069]
[1749441971649,1.41091582,650.94,649.73,1.069]
[1749441971848,1.41092054,650.93,649.73,1.069]
[1749441972050,1.41092527,650.92,649.73,1.069]
[1749441972247,1.41092999,650.91,649.73,1.069]
[1749441972453,1.41093471,650.9,649.73,1.069]
[1749441972756,1.41093943,650.89,649.73,1.069]
[1749441972949,1.41094415,650.88,649.73,1.069]
[1749441973250,1.10366785,650.87,649.73,1.069]
[1749441974556,0.3072763,650.88,649.73,1.069]
[1749441978858,0.3072763,650.88,649.63,0.26755544]
[1749441982464,0.3072763,650.88,649.64,1.114]
[1749441982664,0.3072763,650.88,649.79,3.80111519]
[1749441983566,0.3072763,650.88,649.78,3.80111519]
[1749441986259,0.3072763,650.88,649.85,3.80111519]
[1749441986663,0.3072763,650.88,649.87,3.80111519]
[1749441987665,0.3072763,650.88,649.88,3.80111519]